bitfinex/quotes_ETHUSD_20220305
["timestamp","ask_amount","ask_price","bid_price","bid_amount"]
[1646443175045,0.03097414,2613.0,2612.5,3.57754]
[1646443175244,0.03097414,2613.0,2612.5,3.4818]
[1646443176445,0.03097414,2613.0,2612.6,1.16967054]
[1646443176647,0.84960616,2612.9,2612.7,0.71020324]
[1646443178289,0.84960616,2612.9,2612.8,0.71020324]
[1646443178490,0.77258288,2612.7,2612.6,0.71020324]
[1646443178695,0.77258288,2612.7,2612.6,0.71044524]
[1646443178893,1.62218904,2612.7,2612.6,0.71044524]
[1646443180595,2.00538904,2612.7,2612.6,0.71044524]
[1646443180800,2.00538904,2612.7,2612.5,0.4941]
[1646443180998,0.84960616,2612.6,2612.5,0.4941]
[1646443181445,1.73647011,2612.6,2612.5,0.4941]
[1646443182144,0.84960616,2612.6,2612.5,0.4941]
[1646443183444,0.84960616,2612.6,2612.5,0.25]
[1646443183645,0.84960616,2612.6,2612.5,0.96025635]
[1646443184846,0.64049501,2612.6,2612.5,0.96025635]
[1646443189446,0.64049501,2612.6,2612.5,0.25]
[1646443189447,12.30049501,2612.6,2612.5,0.25]
[1646443189649,15.80049501,2612.6,2612.5,0.25]
[1646443189847,16.80049501,2612.6,2612.5,0.25]
[1646443190048,17.50418145,2612.6,2612.5,0.25]
[1646443190248,18.50049501,2612.6,2612.5,0.25]
[1646443190951,3.04333158,2612.6,2612.5,0.25]
[1646443191149,0.64049501,2612.6,2612.5,0.25]
[1646443191949,0.64049501,2612.6,2612.5,1.1915757]
[1646443193592,0.64049501,2612.6,2612.5,4.6915757]
[1646443193593,0.424848,2612.6,2612.5,4.6915757]
[1646443193793,0.424848,2612.6,2612.5,1.1915757]
[1646443193996,0.77258288,2612.7,2612.5,1.1915757]
[1646443194199,0.77258288,2612.7,2612.5,1.2873157]
[1646443194797,0.77258288,2612.7,2612.5,1.1915757]
[1646443203501,0.31467426,2612.7,2612.5,1.1915757]
[1646443203702,0.03097414,2613.0,2612.7,0.3832]
[1646443203944,0.03097414,2613.0,2612.9,0.3832]
[1646443204146,0.03097414,2613.0,2612.9,1.3832]
[1646443204347,0.00096,2613.9,2613.1,0.3832]
[1646443204547,0.00096,2613.9,2613.6,0.97820071]
[1646443204753,0.01031038,2614.1,2613.6,1.07390071]
[1646443204946,0.00935038,2614.1,2613.6,1.07390071]
[1646443205546,0.38366,2614.2,2613.6,1.07390071]
[1646443205748,0.38366,2614.2,2613.8,0.19136]
[1646443205749,0.3827,2614.2,2613.8,0.19136]
[1646443205950,0.3827,2614.2,2614.0,1.04342415]
[1646443206348,2.7922,2615.1,2614.1,0.25]
[1646443206349,0.00096,2614.7,2614.1,0.25]
[1646443206549,0.00096,2614.8,2614.1,1.25]
[1646443206749,0.89403657,2615.0,2614.1,1.25]
[1646443206750,0.89499657,2615.0,2614.1,1.25]
[1646443206951,0.89499657,2615.0,2614.3,0.19133]
[1646443207150,0.70283657,2614.9,2614.1,1.25]
[1646443207352,0.70379657,2614.9,2614.1,1.25]
[1646443208192,0.00096,2614.9,2614.1,1.25]
[1646443208393,0.00096,2614.9,2614.1,1.44133]
[1646443208997,0.00096,2614.9,2614.8,0.98203346]
[1646443209198,0.00096,2615.1,2614.8,0.98203346]
[1646443209497,0.89403657,2615.2,2614.8,1.23203346]
[1646443209498,0.01028566,2615.0,2614.8,1.23203346]
[1646443210501,0.00096,2615.3,2614.8,1.23203346]
[1646443210702,0.01028543,2615.4,2614.8,1.23203346]
[1646443211102,0.01028543,2615.4,2614.8,0.25]
[1646443211541,0.3832,2615.5,2614.8,0.25]
[1646443213342,1.63236922,2615.5,2614.8,0.25]
[1646443213542,0.3832,2615.5,2614.8,0.25]
[1646443213743,1.17807297,2615.4,2614.8,0.25]
[1646443213946,0.79487297,2615.3,2614.8,0.25]
[1646443214745,1.12439322,2615.2,2614.8,0.25]
[1646443215394,0.79424048,2615.1,2614.8,0.25]
[1646443215800,3.5,2615.0,2614.8,0.25]
[1646443216004,0.79424048,2614.9,2614.8,0.25]
[1646443216204,12.45424048,2614.9,2614.8,0.25]
[1646443216402,0.3832,2614.6,2614.0,0.25]
[1646443216604,0.79424048,2614.5,2613.4,0.3826]
[1646443216806,0.79424048,2614.4,2613.5,0.25]
[1646443217003,0.00096,2614.5,2613.5,0.25]
[1646443217004,0.97877226,2614.3,2613.5,1.22996759]
[1646443217203,0.97781226,2614.3,2613.5,1.22996759]
[1646443217406,0.3832,2614.2,2613.5,1.22996759]
[1646443217709,0.97877226,2614.3,2613.5,1.22996759]
[1646443217907,12.63877226,2614.3,2613.5,0.25]
[1646443218204,0.79419972,2614.2,2613.5,0.25]
[1646443218604,0.3832,2614.1,2613.5,0.25]
[1646443218843,1.00096,2614.3,2613.5,0.25]
[1646443219048,0.79416177,2614.2,2613.5,0.25]
[1646443219448,0.00096,2614.3,2613.5,0.25]
[1646443219649,0.0099412,2614.4,2613.5,0.25]
[1646443219851,0.0099412,2614.4,2613.5,0.34571]
[1646443220052,2.2965,2614.8,2614.3,1.07194934]
[1646443220053,0.00096,2614.7,2614.3,1.07194934]
[1646443220356,2.7,2615.0,2614.0,0.25]
[1646443220357,0.02729759,2614.1,2614.0,0.25]
[1646443220851,0.02729759,2614.1,2614.0,0.34568]
[1646443221151,0.02729759,2614.1,2614.0,3.84568]
[1646443221351,0.02729759,2614.1,2614.0,6.81012713]
[1646443221952,0.02729759,2614.1,2614.0,8.72327713]
[1646443223504,5.54921537,2615.3,2614.1,4.5]
[1646443223710,5.35801537,2615.3,2614.4,0.09566]
[1646443223914,0.1912,2615.4,2614.6,0.25]
[1646443223915,0.5744,2615.4,2614.6,0.25]
[1646443224116,1.15594063,2615.3,2614.6,0.25]
[1646443224313,0.3832,2615.4,2614.9,1.13634108]
[1646443224516,0.191,2615.8,2615.0,3.5]
[1646443224713,13.04613654,2616.1,2615.0,0.25]
[1646443224714,0.7724075,2615.7,2615.0,0.25]
[1646443224915,0.7724075,2615.6,2615.0,0.25]
[1646443225218,0.191,2616.0,2615.0,0.25]
[1646443225413,0.3832,2615.8,2615.0,0.25]
[1646443225617,0.77226064,2615.7,2615.3,1.14498278]
[1646443226112,0.191,2615.9,2615.3,1.14498278]
[1646443226342,0.771823,2615.8,2615.3,1.14498278]
[1646443227445,0.00207879,2615.7,2615.3,1.14498278]
[1646443227643,0.77390179,2615.7,2615.3,1.14498278]
[1646443227846,0.00207879,2615.7,2615.3,1.14498278]
[1646443228251,0.00207879,2615.7,2615.2,0.09564]
[1646443228449,0.38416,2615.8,2615.0,0.25]
[1646443228646,0.00268251,2615.6,2615.0,0.25]
[1646443228848,0.77467848,2615.6,2615.0,0.25]
[1646443229049,0.38588251,2615.6,2615.0,0.25]
[1646443229249,1.53474835,2615.6,2615.0,0.25]
[1646443229453,0.77174704,2615.5,2615.0,0.25]
[1646443229756,12.81494704,2615.5,2615.0,0.25]
[1646443229951,1.14886584,2615.6,2615.0,0.25]
[1646443229952,0.3832,2615.3,2615.0,0.25]
[1646443230206,0.77174704,2615.2,2615.0,0.25]
[1646443230402,0.3832,2615.3,2615.0,0.25]
[1646443230602,0.77209196,2615.2,2615.0,0.25]
[1646443231006,0.3832,2615.3,2615.0,0.25]
[1646443231304,0.77208688,2615.2,2615.0,0.25]
[1646443231709,0.38588259,2615.3,2615.0,0.25]
[1646443232109,0.3832,2615.3,2615.0,0.25]
[1646443232311,0.00096,2615.7,2615.0,0.25]
[1646443232511,0.00268261,2615.2,2615.0,0.25]
[1646443233110,0.00268261,2615.2,2615.1,0.92210641]
[1646443233314,0.01072882,2615.6,2615.1,0.92210641]
[1646443233509,0.00096,2615.7,2615.1,0.92210641]
[1646443233708,0.00261389,2615.2,2615.1,0.92210641]
[1646443234548,0.01045398,2615.6,2615.1,0.92210641]
[1646443234750,0.00261388,2615.3,2615.1,0.92210641]
[1646443235755,1.70096,2615.8,2615.1,0.92210641]
[1646443235962,0.00252815,2615.3,2615.1,0.92210641]
[1646443236152,0.00252815,2615.3,2615.0,0.25]
[1646443236953,0.77315926,2615.6,2615.0,0.25]
[1646443237254,1.0893591,2615.3,2615.0,0.25]
[1646443237455,1.4725591,2615.3,2615.0,0.25]
[1646443237704,12.43329702,2615.2,2615.0,0.25]
[1646443237901,1.4725591,2615.3,2615.0,0.25]
[1646443237902,0.77399238,2615.1,2615.0,0.25]
[1646443238901,12.43399238,2615.1,2615.0,0.25]
[1646443239303,13.43399238,2615.1,2615.0,0.25]
[1646443240301,13.43399238,2615.1,2614.2,0.00163469]
[1646443240302,12.0432,2615.0,2614.2,0.00163469]
[1646443240501,1.15719238,2614.9,2614.1,1.1817]
[1646443240702,1.15719238,2614.8,2614.4,0.25]
[1646443240904,0.76600764,2614.7,2614.4,0.25]
[1646443241110,1.14920764,2614.7,2614.4,0.25]
[1646443241353,0.3832,2614.7,2614.4,0.25]
[1646443241545,0.38416,2615.0,2614.4,0.25]
[1646443241748,0.76601895,2614.9,2614.4,0.25]
[1646443241951,0.00233738,2614.7,2614.4,0.25]
[1646443242552,0.00233738,2614.7,2614.5,0.91792986]
[1646443242951,0.76601895,2614.9,2614.5,0.91792986]
[1646443243152,0.00096,2615.1,2614.5,0.91792986]
[1646443243353,0.0025068,2614.7,2614.5,0.91792986]
[1646443244151,0.00096,2615.0,2614.5,0.91792986]
[1646443244353,0.76870626,2615.3,2614.6,0.78729951]
[1646443244552,0.00250452,2614.7,2614.6,0.78729951]
[1646443245701,0.76870626,2615.3,2614.6,0.78729951]
[1646443245902,0.00250451,2614.8,2614.6,0.88295951]
[1646443246203,0.00250451,2614.8,2614.6,0.09566]
[1646443246405,0.00250451,2614.8,2614.7,0.78860444]
[1646443246601,0.76870626,2615.3,2614.7,0.78860444]
[1646443246802,0.0023986,2614.8,2614.7,0.78860444]
[1646443247806,0.0023986,2614.8,2614.7,1.17180444]
[1646443248208,0.00239911,2614.9,2614.7,1.17180444]
[1646443248408,0.00239911,2614.9,2614.8,0.78860444]
[1646443248850,0.76895569,2615.3,2614.8,0.78860444]
[1646443248851,0.76991569,2615.3,2614.8,0.78860444]
[1646443249050,0.76895569,2615.2,2614.9,1.13075548]
[1646443249246,0.00239909,2615.0,2614.9,1.13075548]
[1646443249445,0.00239909,2615.0,2614.9,1.91991601]
[1646443250045,0.77080954,2615.3,2614.9,1.91991601]
[1646443250246,0.00096,2615.8,2615.0,0.78916053]
[1646443250448,0.01028061,2615.5,2615.3,0.9905607]
[1646443250646,0.76965377,2615.4,2615.3,0.9905607]
[1646443251246,0.76965377,2615.4,2614.9,0.25]
[1646443251448,0.76965377,2615.4,2615.0,0.78904721]
[1646443251652,0.76965377,2615.3,2615.0,0.78904721]
[1646443251846,0.76965377,2615.2,2615.0,0.78904721]
[1646443252048,0.76965377,2615.1,2615.0,0.78904721]
[1646443252247,0.00257034,2615.5,2615.0,1.85089378]
[1646443252449,0.77222411,2615.5,2615.1,0.78904721]
[1646443252696,0.76965377,2615.5,2614.9,0.25]
[1646443252896,0.0025704,2615.2,2615.0,0.78865478]
[1646443253797,0.77061377,2615.5,2615.0,0.78865478]
[1646443254000,0.76965377,2615.5,2615.0,0.78865478]
[1646443254205,0.00257039,2615.2,2615.1,0.78865478]
[1646443255002,0.77061377,2615.5,2615.1,0.78865478]
[1646443255203,0.00257041,2615.3,2615.0,0.25]
[1646443256206,0.76965377,2615.5,2615.0,0.25]
[1646443256454,0.00257041,2615.3,2615.0,0.25]
[1646443257456,2.25567634,2615.6,2615.0,0.25]
[1646443257457,0.96699697,2615.1,2615.0,0.25]
[1646443257657,1.73665074,2615.1,2615.0,0.25]
[1646443258660,0.76965377,2615.1,2615.0,0.25]
[1646443258859,0.00257042,2615.2,2615.0,0.25]
[1646443260092,0.00257041,2615.2,2615.0,0.25]
[1646443260293,0.00257041,2615.2,2615.0,0.00311192]
[1646443261092,0.76965377,2615.5,2615.0,0.00311192]
[1646443261294,0.00232073,2615.2,2615.0,0.79180618]
[1646443261593,0.00232073,2615.2,2615.1,0.78869426]
[1646443261795,0.00232073,2615.2,2615.0,0.79180618]
[1646443262196,0.77061377,2615.5,2615.0,0.79180618]
[1646443262395,0.00232072,2615.3,2615.0,0.79180618]
[1646443262696,0.77197449,2615.3,2615.0,0.79180618]
[1646443262894,0.00232072,2615.3,2615.0,0.79180618]
[1646443263294,0.77012044,2615.6,2615.0,0.79180618]
[1646443263495,0.77012044,2615.6,2615.2,1.18255291]
[1646443263697,0.00232072,2615.3,2615.2,1.18255291]
[1646443263952,0.00232072,2615.3,2615.2,2.00087345]
[1646443264556,0.77012044,2615.6,2615.2,2.00087345]
[1646443264752,0.00257038,2615.4,2615.3,0.81832054]
[1646443265853,0.77012044,2615.6,2615.3,0.81832054]
[1646443266058,0.00257036,2615.5,2615.3,0.81832054]
[1646443266956,0.77012044,2615.6,2615.3,0.81832054]
[1646443267160,0.27012044,2615.6,2615.3,0.81832054]
[1646443267357,7.47,2615.7,2615.3,0.81832054]
[1646443267597,0.00257036,2615.5,2615.3,0.81832054]
[1646443268200,7.47,2615.7,2615.3,0.81832054]
[1646443268404,0.00096,2615.8,2615.4,1.3832]
[1646443268603,0.00096,2616.0,2615.4,0.3832]
[1646443268798,8.17283657,2616.4,2615.6,1.15306681]
[1646443268799,0.00096,2616.2,2615.6,1.15306681]
[1646443269002,0.00096,2616.3,2616.1,0.88918224]
[1646443269202,0.70379657,2616.5,2616.1,0.88918224]
[1646443269403,0.70283657,2616.5,2616.1,0.88918224]
[1646443269602,0.70283657,2616.6,2616.1,0.88918224]
[1646443269806,0.01031911,2616.4,2616.1,0.88918224]
[1646443270401,0.01031911,2616.4,2616.1,0.98478224]
[1646443270801,0.70379657,2616.8,2616.1,0.98478224]
[1646443271000,0.0025801,2616.4,2616.1,0.98478224]
[1646443271957,0.00254913,2616.4,2616.1,0.98478224]
[1646443272958,0.00096,2617.0,2616.1,1.17578224]
[1646443273158,0.00096,2616.8,2616.1,1.17578224]
[1646443273357,0.00258731,2616.4,2616.1,1.17578224]
[1646443274059,0.00258731,2616.4,2616.1,1.08018224]
[1646443274257,0.00096,2616.8,2616.1,1.08018224]
[1646443274458,0.00204328,2616.4,2616.1,0.88918224]
[1646443274859,0.00204328,2616.4,2616.0,0.81653097]
[1646443275107,0.00204328,2616.4,2616.0,0.25]
[1646443275302,0.38524328,2616.4,2615.2,0.191]
[1646443275506,0.3832,2616.2,2615.5,0.25]
[1646443275802,4.20379657,2616.3,2615.5,0.25]
[1646443275803,0.3832,2616.0,2615.5,0.25]
[1646443276004,1.25607612,2616.0,2615.5,0.25]
[1646443276405,0.3832,2616.0,2615.5,0.25]
[1646443276709,0.3832,2616.2,2615.5,0.25]
[1646443276905,0.00262488,2615.9,2615.5,0.25]
[1646443277907,0.00096,2616.1,2615.5,0.25]
[1646443278107,0.0026249,2615.8,2615.5,0.25]
[1646443278307,0.0026249,2615.8,2615.7,1.09043078]
[1646443279157,0.01049801,2616.2,2615.7,1.09043078]
[1646443279353,0.00096,2616.3,2615.7,1.09043078]
[1646443279354,0.00269484,2615.9,2615.7,1.09043078]
[1646443280153,0.00096,2616.7,2615.9,0.0028769]
[1646443280357,0.89479657,2616.8,2616.2,0.86878861]
[1646443280554,0.01077768,2616.3,2616.2,0.86878861]
[1646443280755,0.01077768,2616.3,2616.0,0.25]
[1646443281354,12.74699657,2616.8,2616.0,0.25]
[1646443281554,0.3832,2616.6,2616.0,0.25]
[1646443281755,0.00268695,2616.3,2616.0,0.25]
[1646443282809,0.00263685,2616.3,2616.0,0.25]
[1646443283703,1.21269066,2616.4,2616.0,0.25]
[1646443283910,0.00263685,2616.3,2616.0,0.25]
[1646443284908,1.59589066,2616.4,2616.0,0.25]
[1646443285309,0.00257543,2616.3,2616.0,0.25]
[1646443285907,1.088612,2616.3,2616.0,0.25]
[1646443286109,1.08603657,2616.3,2616.0,0.25]
[1646443286548,1.0886621,2616.3,2616.0,0.25]
[1646443286750,1.0386621,2616.3,2616.0,0.25]
[1646443287149,0.7247365,2616.2,2616.0,0.25]
[1646443288751,0.7247365,2616.1,2616.0,0.25]
[1646443288959,0.00269475,2616.2,2616.0,0.25]
[1646443289756,0.7247365,2616.4,2616.0,0.25]
[1646443290204,0.00269475,2616.2,2616.0,0.25]
[1646443290402,0.00269475,2616.2,2616.1,1.04135468]
[1646443290701,0.00269475,2616.2,2616.0,0.25]
[1646443291102,0.72743125,2616.2,2616.0,0.25]
[1646443291302,0.7247365,2616.1,2616.0,0.25]
[1646443291701,0.72743124,2616.3,2616.0,0.25]
[1646443291902,0.8694723,2616.2,2616.0,0.25]
[1646443292106,0.7247365,2616.1,2616.0,0.25]
[1646443299103,0.00263256,2616.2,2616.0,0.25]
[1646443299398,1.42626876,2616.4,2616.0,0.25]
[1646443299399,0.7247365,2616.3,2616.0,0.25]
[1646443299600,0.7247365,2616.2,2616.0,0.25]
[1646443299798,0.7247365,2616.1,2616.0,1.31061851]
[1646443300000,0.00259663,2616.2,2616.0,2.14259135]
[1646443300199,0.00259663,2616.2,2616.0,1.31061851]
[1646443300398,0.72733313,2616.2,2616.0,1.31061851]
[1646443300600,0.7247365,2616.1,2616.0,1.31061851]
[1646443300799,0.7247365,2616.1,2616.0,2.14253975]
[1646443301000,0.00259662,2616.2,2616.0,2.14253975]
[1646443301204,0.00259662,2616.2,2616.1,0.83221836]
[1646443301448,0.00259662,2616.2,2616.1,0.83220921]
[1646443301647,0.00259662,2616.2,2616.0,1.31061851]
[1646443301848,0.7256965,2616.5,2616.1,0.83218822]
[1646443302047,0.7247365,2616.4,2616.1,0.83218822]
[1646443302247,0.72733311,2616.3,2616.1,0.83218822]
[1646443302449,0.5250779,2616.0,2615.9,0.58736172]
[1646443302848,1.2498144,2616.0,2615.9,1.42440977]
[1646443303049,1.2498144,2616.0,2615.9,0.58736172]
[1646443304053,1.2498144,2616.0,2615.9,1.42519411]
[1646443307700,1.2498144,2616.0,2615.9,1.37519411]
[1646443309451,1.2498144,2616.0,2615.9,4.87519411]
[1646443310251,0.5250779,2616.0,2615.9,4.87519411]
[1646443312598,0.5250779,2616.0,2615.9,1.75839411]
[1646443312799,0.5250779,2616.0,2615.9,1.37519411]
[1646443313000,0.5250779,2616.0,2615.9,1.75839411]
[1646443313200,0.5250779,2616.0,2615.9,5.25839411]
[1646443315506,0.5250779,2616.0,2615.9,4.87519411]
[1646443316375,0.5250779,2616.0,2615.9,5.57585857]
[1646443316561,0.5250779,2616.0,2615.9,6.25839411]
[1646443316757,0.5250779,2616.0,2615.9,5.87519411]
[1646443317458,0.0025804,2616.1,2616.0,4.5]
[1646443317658,0.00516075,2616.1,2616.0,9.53935322]
[1646443317858,0.00258035,2616.1,2616.0,10.53935322]
[1646443318759,0.00096,2616.8,2616.2,0.09559]
[1646443318963,0.00939467,2616.6,2616.3,2.74944489]
[1646443319160,0.00939467,2616.6,2616.4,0.83783239]
[1646443319567,0.00939467,2616.6,2616.5,1.0354363]
[1646443319763,0.00939467,2616.6,2616.5,1.87326869]
[1646443319966,0.71237531,2616.6,2616.5,1.87326869]
[1646443320200,0.00096,2617.1,2616.6,0.09559]
[1646443320201,0.00939432,2617.0,2616.6,0.09559]
[1646443320398,0.71240272,2616.9,2616.7,0.83783239]
[1646443320801,0.71240272,2616.9,2616.0,5.6328]
[1646443321000,0.71336272,2616.9,2616.2,1.0]
[1646443321199,0.71240272,2616.8,2616.3,0.84714584]
[1646443321403,0.00096,2616.9,2616.0,4.6328]
[1646443321404,0.71240272,2616.7,2616.4,0.84714584]
[1646443321599,1.79948386,2616.9,2616.1,0.84714584]
[1646443321797,0.00096,2616.7,2616.2,0.84741625]
[1646443322000,0.71336272,2616.8,2616.3,0.84741625]
[1646443322204,0.71240272,2616.8,2616.3,0.84741625]
[1646443322599,0.00253658,2616.6,2616.3,0.84741625]
[1646443322798,0.7149393,2616.6,2616.3,0.84741625]
[1646443322999,0.71240272,2616.5,2616.3,0.84741625]
[1646443323200,0.00253658,2616.6,2616.3,0.84741625]
[1646443323201,0.71240272,2616.4,2616.3,0.84741625]
[1646443323399,0.71263704,2617.0,2616.3,0.84741625]
[1646443323604,1.4139322,2616.9,2616.3,0.84741625]
[1646443323857,0.00253659,2616.5,2616.3,0.84741625]
[1646443324253,0.00253659,2616.5,2616.4,0.84741625]
[1646443324452,0.00253659,2616.5,2616.0,0.84741625]
[1646443324653,0.00096,2616.6,2616.1,0.84741625]
[1646443324858,0.71239994,2616.7,2616.2,0.84741625]
[1646443325051,0.71239994,2616.7,2615.9,1.53736172]
[1646443325052,0.00253658,2616.5,2616.3,0.84741625]
[1646443325253,0.00253658,2616.5,2616.4,0.84741625]
[1646443325455,0.00253658,2616.5,2616.1,1.02922292]
[1646443325656,0.00253658,2616.5,2616.2,0.84739215]
[1646443325957,0.71239994,2616.7,2616.2,0.84739215]
[1646443326156,0.00249704,2616.6,2616.2,0.84739215]
[1646443326954,0.71489698,2616.6,2616.2,0.84739215]
[1646443327157,0.71239994,2616.5,2616.2,0.84739215]
[1646443327361,0.00249705,2616.5,2616.2,0.84739215]
[1646443328398,0.71219546,2616.6,2616.2,0.84739215]
[1646443328596,0.71469252,2616.5,2616.2,0.84739215]
[1646443328797,0.00249706,2616.5,2616.2,0.84739215]
[1646443329905,0.00234507,2616.5,2616.2,0.84739215]
[1646443331847,0.71204495,2616.5,2616.2,0.84739215]
[1646443332050,0.38416,2616.8,2616.2,0.84739215]
[1646443332250,0.00234507,2616.5,2616.2,0.84739215]
[1646443333049,0.7120897,2616.5,2616.2,0.84739215]
[1646443333249,0.00235496,2616.5,2616.2,0.84739215]
[1646443333650,0.7144117,2616.5,2616.2,0.84739215]
[1646443334054,0.71205674,2616.4,2616.2,0.84739215]
[1646443334254,0.00235496,2616.5,2616.2,0.84739215]
[1646443334656,0.00096,2616.8,2616.2,0.84739215]
[1646443334856,0.00235496,2616.5,2616.2,0.84739215]
[1646443335305,0.71310812,2616.8,2616.5,0.00020497]
[1646443335503,0.71214812,2616.8,2616.6,0.09559]
[1646443335803,1.08569226,2617.2,2616.7,0.84739215]
[1646443336003,0.00941844,2616.9,2616.7,0.84739215]
[1646443336203,0.71207735,2616.8,2616.7,0.84739215]
[1646443336607,0.71207735,2616.8,2616.6,1.10834612]
[1646443336805,0.71207735,2616.8,2616.7,0.84622542]
[1646443337003,0.00184964,2616.9,2616.7,0.84622542]
[1646443337509,0.00184964,2616.9,2616.5,0.00020497]
[1646443337711,0.7033819,2616.9,2616.5,0.00020497]
[1646443337907,1.41360961,2616.9,2616.5,0.00020497]
[1646443338306,1.41545925,2616.9,2616.5,0.00020497]
[1646443338706,1.79865925,2616.9,2616.5,0.00020497]
[1646443338954,0.71207735,2616.8,2616.5,0.00020497]
[1646443339458,1.09774988,2616.8,2616.5,0.00020497]
[1646443339656,0.71207735,2616.7,2616.5,0.00020497]
[1646443339858,13.07360961,2616.7,2616.5,0.00020497]
[1646443340056,0.71207735,2616.6,2616.5,0.00020497]
[1646443342356,0.70410525,2616.7,2616.5,0.00020497]
[1646443342808,0.70153226,2616.7,2616.5,0.00020497]
[1646443343101,0.70410525,2616.7,2616.5,0.00020497]
[1646443343302,1.4161826,2616.7,2616.5,0.00020497]
[1646443343905,0.71207735,2616.6,2616.5,0.00020497]
[1646443344306,0.0023813,2616.7,2616.5,0.00020497]
[1646443344508,0.71445865,2616.7,2616.5,0.00020497]
[1646443344706,0.71445865,2616.7,2616.5,0.95537906]
[1646443344707,0.71207735,2616.6,2616.5,0.95537906]
[1646443344907,0.0023813,2616.7,2616.5,0.84720231]
[1646443345106,0.71207735,2616.9,2616.6,0.84699734]
[1646443345312,0.71207735,2616.8,2616.7,0.84699734]
[1646443345507,0.00096,2616.9,2616.5,0.00020497]
[1646443346108,1.41360961,2617.0,2616.5,0.8470399]
[1646443346550,1.41360961,2617.0,2616.6,0.84683493]
[1646443346749,0.00238128,2616.8,2616.5,0.00020497]
[1646443347652,0.70153226,2616.9,2616.5,0.00020497]
[1646443348053,0.00234031,2616.8,2616.5,0.00020497]
[1646443348854,0.71207735,2616.9,2616.5,0.00020497]
[1646443349055,0.71207735,2616.8,2616.5,0.00020497]
[1646443349356,0.71207735,2616.7,2616.5,0.00020497]
[1646443349555,0.71207735,2616.6,2616.5,0.00020497]
[1646443350412,12.74473226,2616.8,2616.5,0.00020497]
[1646443350413,1.41360961,2616.7,2616.5,0.00020497]
[1646443350604,0.71207735,2616.6,2616.5,0.00020497]
[1646443350806,1.41360961,2616.6,2616.5,0.00020497]
[1646443351805,0.71207735,2616.6,2616.5,0.00020497]
[1646443352613,1.41360961,2616.6,2616.5,0.00020497]
[1646443352811,0.71207735,2616.6,2616.5,0.00020497]
[1646443353018,15.87207735,2616.6,2616.5,0.00020497]
[1646443353213,16.87207735,2616.6,2616.5,0.00020497]
[1646443353411,5.21207735,2616.6,2616.5,0.00020497]
[1646443353613,1.71207735,2616.6,2616.5,0.00020497]
[1646443353856,0.71207735,2616.6,2616.5,0.00020497]
[1646443354854,13.97841194,2616.7,2616.5,0.00020497]
[1646443354855,13.97590975,2616.7,2616.5,0.00020497]
[1646443355153,0.71418251,2616.6,2616.5,0.00020497]
[1646443356154,12.37418251,2616.6,2616.5,0.00020497]
[1646443356352,14.30689226,2616.6,2616.5,0.00020497]
[1646443356553,13.37418251,2616.6,2616.5,0.00020497]
[1646443358304,14.30689226,2616.6,2616.5,0.00020497]
[1646443358501,13.37418251,2616.6,2616.5,0.00020497]
[1646443359706,0.98447621,2616.3,2615.7,0.84833553]
[1646443359907,0.98447621,2616.3,2615.7,0.94396553]
[1646443359908,0.71418251,2616.2,2615.7,0.94396553]
[1646443360110,0.71418251,2616.2,2615.8,0.84833553]
[1646443360907,0.71418251,2616.1,2615.8,0.84833553]
[1646443361109,0.71418251,2616.0,2615.8,0.84833553]
[1646443361361,0.71418251,2615.9,2615.8,0.84833553]
[1646443361555,0.71418251,2616.4,2615.8,0.84833553]
[1646443361853,1.7822524,2616.4,2615.8,1.86963314]
[1646443362053,0.71418251,2616.3,2615.9,0.84833553]
[1646443367403,0.71418251,2616.2,2615.9,0.84833553]
[1646443367603,0.71418251,2616.1,2615.9,0.84833553]
[1646443367804,0.00067024,2616.5,2616.0,0.09561]
[1646443368009,0.00067024,2616.5,2616.1,0.84833553]
[1646443368207,0.00067024,2616.5,2616.2,2.20901812]
[1646443368409,0.00067024,2616.5,2616.3,0.84833553]
[1646443368606,0.7144007,2616.5,2616.3,0.84833553]
[1646443368864,0.71373046,2616.4,2616.3,0.84833553]
[1646443369258,0.7144007,2616.5,2616.3,0.84833553]
[1646443369464,0.71373046,2616.4,2616.3,0.84833553]
[1646443370361,0.00067024,2616.5,2616.3,0.84833553]
[1646443372600,0.00110818,2616.6,2616.3,0.84833553]
[1646443372800,0.71373046,2616.7,2616.4,0.84833553]
[1646443373003,0.71373046,2616.7,2616.5,0.84833553]
[1646443373202,0.0025852,2616.6,2615.8,1.1612]
[1646443373401,0.0025852,2616.6,2615.9,0.84703919]
[1646443373402,1.41981072,2616.6,2615.9,0.84703919]
[1646443373608,3.8832,2616.5,2615.9,0.84703919]
[1646443373906,3.8832,2616.5,2616.0,0.84703919]
[1646443373907,1.41722552,2616.4,2616.0,0.84703919]
[1646443374107,1.0597909,2616.2,2616.1,0.84703919]
[1646443374306,1.0597909,2616.2,2615.7,0.84703919]
[1646443374307,1.77352136,2616.2,2615.7,0.84703919]
[1646443374507,0.71373046,2616.1,2615.7,0.84703919]
[1646443374907,0.71373046,2616.0,2615.7,0.84703919]
[1646443375206,0.71373046,2615.9,2615.7,0.84703919]
[1646443375407,0.00829266,2616.4,2616.0,0.77203627]
[1646443375605,0.71776937,2616.3,2616.1,0.84703919]
[1646443375805,1.14636168,2616.2,2616.1,0.84703919]
[1646443376007,1.86413105,2616.2,2616.1,0.84703919]
[1646443379458,0.71776937,2616.2,2616.1,0.84703919]
[1646443380301,0.71776937,2616.5,2616.1,0.84703919]
[1646443380502,1.2026603,2616.3,2616.1,0.84703919]
[1646443380705,0.71776937,2616.2,2616.1,0.84703919]
[1646443381103,0.71776937,2616.6,2616.1,0.84703919]
[1646443381305,1.42126443,2616.6,2616.1,0.84703919]
[1646443382106,1.21624997,2616.4,2616.1,0.84703919]
[1646443382405,0.71776937,2616.3,2616.1,0.84703919]
[1646443383954,0.71776937,2616.2,2616.1,0.84703919]
[1646443384354,0.01314717,2616.7,2616.1,0.84703919]
[1646443384355,0.71776937,2616.6,2616.1,0.84703919]
[1646443384557,0.71776937,2616.5,2616.1,0.84703919]
[1646443384755,0.71776937,2616.4,2616.1,0.84703919]
[1646443384954,0.71776937,2616.6,2616.2,1.18480654]
[1646443385155,0.71776937,2616.5,2616.3,0.84703919]
[1646443385355,0.71776937,2616.4,2616.3,0.84703919]
[1646443385555,0.72017268,2616.7,2616.3,0.84703919]
[1646443385755,0.71776937,2616.6,2616.3,0.84703919]
[1646443385958,0.71776937,2616.5,2616.3,0.84703919]
[1646443386154,0.71776937,2616.4,2616.3,0.84703919]
[1646443389711,0.61776937,2616.4,2616.3,0.84703919]